lending/lending_fUSD_20250303
["ID","MTS","AMOUNT","RATE_DAILY","PERIOD"]
[355190648,1740975064709,-500.0,0.00023287,2]
[355190649,1740975064719,-500.0,0.00023287,2]
[355190650,1740975064729,-522.39190473,0.00023287,2]
[355190651,1740975064740,-500.0,0.00023287,2]
[355190652,1740975064751,-500.0,0.00023287,2]
[355190653,1740975064760,-159.03659693,0.00023287,2]
[355190654,1740975064770,-582.89542169,0.00023287,2]
[355190655,1740975064781,-500.0,0.00023287,2]
[355190656,1740975064791,-35220.11,0.00023287,2]
[355190657,1740975064802,-500.0,0.00023287,2]
[355190658,1740975064811,-500.0,0.00023287,2]
[355190659,1740975064821,-500.0,0.00023287,2]
[355190660,1740975064831,-500.0,0.00023287,2]
[355190661,1740975064841,-665.34,0.00023287,2]
[355190662,1740975064851,-500.0,0.00023287,2]
[355190663,1740975064862,-500.0,0.00023287,2]
[355190664,1740975064872,-500.0,0.00023287,2]
[355190665,1740975064882,-500.0,0.00023287,2]
[355190666,1740975064892,-500.0,0.00023287,2]
[355190667,1740975064902,-500.0,0.00023287,2]
[355190668,1740975064911,-500.0,0.00023287,2]
[355190669,1740975064922,-500.0,0.00023287,2]
[355190670,1740975064932,-500.0,0.00023287,2]
[355190671,1740975064942,-500.0,0.00023287,2]
[355190672,1740975064953,-324.18950706,0.00023287,2]
[355190673,1740975064963,-500.0,0.00023287,2]
[355190674,1740975064973,-500.0,0.00023287,2]
[355190675,1740975064983,-500.0,0.00023287,2]
[355190676,1740975064995,-500.0,0.00023287,2]
[355190677,1740975065006,-180.71144704,0.00023287,7]
[355190678,1740975065016,-500.0,0.00023287,2]
[355190679,1740975065027,-500.0,0.00023287,2]
[355190680,1740975065036,-500.0,0.00023287,2]
[355190681,1740975065046,-500.0,0.00023287,2]
[355190682,1740975065056,-489.46747106,0.00023315,2]
[355190683,1740975065066,-489.46747106,0.00023425,2]
[355190684,1740975065077,-1293.78184584,0.0002346,2]
[355190685,1740975065087,-7636.37471161,0.00023477,2]
[355190686,1740975065097,-1164.75,0.00023517,2]
[355190687,1740975065107,-489.46747106,0.00023534,2]
[355190688,1740975065116,-8044.6283084,0.00023545,2]
[355190689,1740975065126,-18165.064689,0.00023545,2]
[355190690,1740975065136,-2581.61,0.0002356,2]
[355190691,1740975065147,-568.51,0.00023561,2]
[355190692,1740975065157,-300.0,0.00023561,2]
[355190693,1740975065166,-500.0,0.00023561,2]
[355190694,1740975065176,-155.104905,0.00023561,2]
[355190695,1740975065186,-152.335173,0.00023561,2]
[355190696,1740975065196,-500.0,0.00023561,2]
[355190697,1740975065206,-165.164605,0.00023561,2]
[355190698,1740975065215,-190.19610576,0.00023561,2]
[355190699,1740975065225,-415.53672705,0.00023561,2]
[355190700,1740975065234,-533.9136824,0.00023561,2]
[355190701,1740975065245,-500.0,0.00023561,2]
[355190702,1740975065254,-500.0,0.00023561,2]
[355190703,1740975065264,-526.35313665,0.00023561,2]
[355190704,1740975065274,-586.15853196,0.00023561,2]
[355190705,1740975065284,-5263.18,0.00023561,2]
[355190706,1740975065294,-500.0,0.00023561,2]
[355190707,1740975065304,-500.0,0.00023561,2]
[355190708,1740975065314,-500.0,0.00023561,2]
[355190709,1740975065325,-500.0,0.00023561,2]
[355190710,1740975065334,-500.0,0.00023561,2]
[355190711,1740975065344,-500.0,0.00023561,2]
[355190712,1740975065354,-500.0,0.00023561,2]
[355190713,1740975065364,-250.77394987,0.00023561,2]
[355190714,1740975065380,-500.0,0.00023561,2]
[355190715,1740975065401,-726.77,0.00023561,2]
[355190716,1740975065422,-500.0,0.00023561,2]
[355190717,1740975065444,-538.98,0.00023561,2]
[355190718,1740975065467,-776.48,0.00023561,2]
[355190719,1740975065492,-500.0,0.00023561,2]
[355190720,1740975065514,-1602.35,0.00023561,2]
[355190721,1740975065538,-654.85,0.00023561,2]
[355190722,1740975065560,-500.0,0.00023561,2]
[355190723,1740975065583,-500.0,0.00023561,2]
[355190724,1740975065605,-695.45,0.00023561,2]
[355190725,1740975065626,-500.0,0.00023561,2]
[355190726,1740975065646,-500.0,0.00023561,2]
[355190727,1740975065669,-500.0,0.00023561,2]
[355190728,1740975065680,-500.0,0.00023561,2]
[355190729,1740975065690,-500.0,0.00023561,2]
[355190730,1740975065700,-500.0,0.00023561,2]
[355190731,1740975065709,-500.0,0.00023561,2]
[355190732,1740975065719,-500.0,0.00023561,2]
[355190733,1740975065729,-448.07125442,0.00023561,2]
[355190734,1740975065739,-500.0,0.00023561,2]
[355190735,1740975065748,-500.0,0.00023561,2]
[355190736,1740975065758,-500.0,0.00023561,2]
[355190737,1740975065768,-556.29,0.00023561,2]
[355190738,1740975065778,-15566.77,0.00023561,2]
[355190739,1740975065788,-2518.58,0.00023561,2]
[355190740,1740975065798,-500.0,0.00023561,2]
[355190741,1740975065807,-595.17,0.00023561,2]
[355190742,1740975065817,-2098.01,0.00023561,2]
[355190743,1740975065827,-500.0,0.00023561,2]
[355190744,1740975065836,-500.0,0.00023561,2]
[355190745,1740975065846,-540.5,0.00023561,2]
[355190746,1740975065855,-567.04,0.00023561,2]
[355190747,1740975065864,-500.0,0.00023561,2]
[355190748,1740975065874,-260.25529734,0.00023561,2]
[355190749,1740975065884,-500.0,0.00023561,2]
[355190750,1740975065893,-852.88,0.00023561,2]
[355190751,1740975065904,-500.0,0.00023561,2]
[355190752,1740975065914,-500.0,0.00023561,2]
[355190753,1740975065923,-898.43,0.00023561,2]
[355190754,1740975065933,-500.0,0.00023561,2]
[355190755,1740975065942,-1616.95,0.00023561,2]
[355190756,1740975065952,-500.0,0.00023561,2]
[355190757,1740975065962,-500.0,0.00023561,2]
[355190758,1740975065971,-487.48353593,0.00023561,2]
[355190759,1740975065981,-183.51446917,0.00023561,2]
[355190760,1740975065991,-515.6,0.00023561,2]
[355190761,1740975066000,-262.28613393,0.00023561,2]
[355190762,1740975066010,-500.0,0.00023561,2]
[355190763,1740975066019,-500.0,0.00023561,2]
[355190764,1740975066028,-500.0,0.00023561,2]
[355190765,1740975066038,-500.0,0.00023561,2]
[355190766,1740975066047,-500.0,0.00023561,2]
[355190767,1740975066057,-500.0,0.00023561,2]
[355190768,1740975066066,-500.0,0.00023561,2]
[355190769,1740975066076,-500.0,0.00023561,2]
[355190770,1740975066085,-537.83,0.00023561,2]
[355190771,1740975066095,-500.0,0.00023561,2]
[355190772,1740975066104,-511.58,0.00023561,2]
[355190773,1740975066114,-500.0,0.00023561,2]
[355190774,1740975066123,-628.38,0.00023561,2]
[355190775,1740975066134,-500.0,0.00023561,2]
[355190776,1740975066144,-536.97,0.00023561,2]
[355190777,1740975066153,-500.0,0.00023561,2]
[355190778,1740975066163,-619.57,0.00023561,2]
[355190779,1740975066172,-380.5705293,0.00023561,2]
[355190780,1740975066182,-500.0,0.00023561,2]
[355190781,1740975066191,-287.20144877,0.00023561,2]
[355190782,1740975066200,-500.0,0.00023561,2]
[355190783,1740975066210,-500.0,0.00023561,2]
[355190784,1740975066220,-35220.11,0.00023561,2]
[355190785,1740975066229,-500.0,0.00023561,2]
[355190786,1740975066239,-546.0996838,0.00023561,2]
[355190787,1740975066248,-500.0,0.00023561,2]
[355190788,1740975066257,-500.0,0.00023561,2]
[355190789,1740975066267,-665.34,0.00023561,2]
[355190790,1740975066276,-500.0,0.00023561,2]
[355190791,1740975066285,-500.0,0.00023561,2]
[355190792,1740975066294,-165.74283998,0.00023561,2]
[355190793,1740975066304,-500.0,0.00023561,2]
[355190794,1740975066314,-500.0,0.00023561,2]
[355190795,1740975066323,-500.0,0.00023561,2]
[355190796,1740975066332,-500.0,0.00023561,2]
[355190797,1740975066342,-500.0,0.00023561,2]
[355190798,1740975066351,-500.0,0.00023561,2]
[355190799,1740975066360,-500.0,0.00023561,2]
[355190800,1740975066369,-500.0,0.00023561,2]
[355190801,1740975066380,-500.0,0.00023561,2]
[355190802,1740975066391,-500.0,0.00023561,2]
[355190803,1740975066400,-500.0,0.00023561,2]
[355190804,1740975066410,-500.0,0.00023561,2]
[355190805,1740975066419,-500.0,0.00023561,2]
[355190806,1740975066431,-500.0,0.00023561,2]
[355190807,1740975066440,-500.0,0.00023561,2]
[355190808,1740975066449,-203.0,0.0002373,2]
[355190809,1740975066459,-17014.84198018,0.00023735,2]
[355190810,1740975066468,-150.0,0.00023735,2]
[355190811,1740975066478,-202.0,0.0002379,2]
[355190812,1740975066487,-2581.61,0.00023834,2]
[355190813,1740975066496,-568.51,0.00023835,2]
[355190814,1740975066505,-300.0,0.00023835,2]
[355190815,1740975066515,-500.0,0.00023835,2]
[355190816,1740975066524,-500.0,0.00023835,2]
[355190817,1740975066534,-165.164605,0.00023835,2]
[355190818,1740975066543,-500.0,0.00023835,2]
[355190819,1740975066552,-248.34867278,0.00023835,2]
[355190820,1740975066561,-5263.18,0.00023835,2]
[355190821,1740975066570,-500.0,0.00023835,2]
[355190822,1740975066579,-500.0,0.00023835,2]
[355190823,1740975066588,-500.0,0.00023835,2]
[355190824,1740975066598,-345.33423286,0.00023835,2]
[355190825,1740975066607,-500.0,0.00023835,2]
[355190826,1740975066616,-500.0,0.00023835,2]
[355190827,1740975066626,-500.0,0.00023835,2]
[355190828,1740975066636,-500.0,0.00023835,2]
[355190829,1740975066646,-726.77,0.00023835,2]
[355190830,1740975066656,-500.0,0.00023835,2]
[355190831,1740975066666,-538.98,0.00023835,2]
[355190832,1740975066675,-776.48,0.00023835,2]
[355190833,1740975066685,-500.0,0.00023835,2]
[355190834,1740975066695,-1602.35,0.00023835,2]
[355190835,1740975066705,-654.85,0.00023835,2]
[355190836,1740975066715,-300.14004437,0.00023835,2]
[355190837,1740975066726,-437.35872371,0.00023835,2]
[355190838,1740975066736,-695.45,0.00023835,2]
[355190839,1740975066753,-171.84540049,0.00023835,2]
[355190840,1740975066764,-500.0,0.00023835,2]
[355190841,1740975066776,-500.0,0.00023835,2]
[355190842,1740975066786,-500.0,0.00023835,2]
[355190843,1740975066797,-500.0,0.00023835,2]
[355190844,1740975066807,-500.0,0.00023835,2]
[355190845,1740975066818,-500.0,0.00023835,2]
[355190846,1740975066828,-321.67244014,0.00023835,2]
[355190847,1740975066838,-500.0,0.00023835,2]
[355190848,1740975066848,-500.0,0.00023835,2]
[355190849,1740975066858,-556.29,0.00023835,2]
[355190850,1740975066868,-15566.77,0.00023835,2]
[355190851,1740975066878,-2518.58,0.00023835,2]
[355190852,1740975066887,-500.0,0.00023835,2]
[355190853,1740975066896,-595.17,0.00023835,2]
[355190854,1740975066905,-2098.01,0.00023835,2]
[355190855,1740975066915,-500.0,0.00023835,2]
[355190856,1740975066924,-500.0,0.00023835,2]
[355190857,1740975066934,-540.5,0.00023835,2]
[355190858,1740975066943,-567.04,0.00023835,2]
[355190859,1740975066953,-500.0,0.00023835,2]
[355190860,1740975066963,-622.974947,0.00023835,2]
[355190861,1740975066972,-852.88,0.00023835,2]
[355190862,1740975066981,-500.0,0.00023835,2]
[355190863,1740975066993,-500.0,0.00023835,2]
[355190864,1740975067003,-898.43,0.00023835,2]
[355190865,1740975067188,-500.0,0.00023835,2]
[355190866,1740975067200,-1616.95,0.00023835,2]
[355190867,1740975067210,-242.47194167,0.00023835,2]
[355190868,1740975067220,-500.0,0.00023835,2]
[355190869,1740975067230,-515.6,0.00023835,2]
[355190870,1740975067241,-190.21529294,0.00023835,2]
[355190871,1740975067250,-500.0,0.00023835,2]
[355190872,1740975067260,-500.0,0.00023835,2]
[355190873,1740975067270,-500.0,0.00023835,2]
[355190874,1740975067279,-500.0,0.00023835,2]
[355190875,1740975067289,-500.0,0.00023835,2]
[355190876,1740975067299,-500.0,0.00023835,2]
[355190877,1740975067308,-500.0,0.00023835,2]
[355190878,1740975067317,-537.83,0.00023835,2]
[355190879,1740975067327,-500.0,0.00023835,2]
[355190880,1740975067336,-511.58,0.00023835,2]
[355190881,1740975067346,-500.0,0.00023835,2]
[355190882,1740975067355,-628.38,0.00023835,2]
[355190883,1740975067365,-536.97,0.00023835,2]
[355190884,1740975067377,-500.0,0.00023835,2]
[355190885,1740975067386,-500.0,0.00023835,2]
[355190886,1740975067396,-619.57,0.00023835,2]
[355190887,1740975067405,-500.0,0.00023835,2]
[355190888,1740975067414,-500.0,0.00023835,2]
[355190889,1740975067424,-500.0,0.00023835,2]
[355190890,1740975067433,-35220.11,0.00023835,2]
[355190891,1740975067443,-500.0,0.00023835,2]
[355190892,1740975067453,-500.0,0.00023835,2]
[355190893,1740975067464,-157.13649267,0.00023835,2]
[355190894,1740975067474,-665.34,0.00023835,2]
[355190895,1740975067483,-500.0,0.00023835,2]
[355190896,1740975067495,-395.00282738,0.00023835,2]
[355190897,1740975067505,-631.46498298,0.00023835,2]
[355190898,1740975067514,-500.0,0.00023835,2]
[355190899,1740975067524,-500.0,0.00023835,2]
[355190900,1740975067535,-249.13215699,0.00023835,2]
[355190901,1740975067545,-500.0,0.00023835,2]
[355190902,1740975067554,-500.0,0.00023835,2]
[355190903,1740975067563,-500.0,0.00023835,2]
[355190904,1740975067572,-500.0,0.00023835,2]
[355190905,1740975067582,-500.0,0.00023835,2]
[355190906,1740975067593,-500.0,0.00023835,2]
[355190907,1740975067603,-500.0,0.00023835,2]
[355190908,1740975067613,-500.0,0.00023835,2]
[355190909,1740975067622,-500.0,0.00023835,2]
[355190910,1740975067632,-253.78355709,0.00023835,2]
[355190911,1740975067641,-500.0,0.00023835,2]
[355190912,1740975067650,-466.02,0.00023836,2]
[355190913,1740975067660,-150.0,0.00023864,2]
[355190914,1740975067669,-196.90141459,0.000239,2]
[355190915,1740975067679,-2700.0,0.000239,8]
[355190916,1740975067688,-1277.0,0.00023983,2]
[355190917,1740975067697,-570.0,0.00023983,2]
[355190918,1740975067707,-1583.0,0.00023983,2]
[355190919,1740975067716,-640.0,0.00023983,2]
[355190920,1740975067725,-786.0,0.00023983,2]
[355190921,1740975067734,-1269.0,0.00023983,2]
[355190922,1740975067745,-1427.0,0.00023983,2]
[355190923,1740975067755,-541.0,0.00023983,2]
[355190924,1740975067764,-908.0,0.00023983,2]
[355190925,1740975067774,-4040.0,0.00023983,2]
[355190926,1740975067784,-150.0,0.00023983,2]
[355190927,1740975067794,-3928.0,0.00023983,2]
[355190928,1740975067803,-1011.0,0.00023983,2]
[355190929,1740975067813,-176409.08038261,0.00024,2]
[355190930,1740975067822,-400.0,0.00024,2]
[355190931,1740975067831,-106965.75561866,0.00024,3]
[355190932,1740975067841,-2000.0,0.00024,4]
[355190933,1740975067850,-2581.61,0.00024108,2]
[355190934,1740975067860,-568.51,0.00024109,2]
[355190935,1740975067869,-300.0,0.00024109,2]
[355190936,1740975067878,-500.0,0.00024109,2]
[355190937,1740975067888,-152.335173,0.00024109,2]
[355190938,1740975067897,-500.0,0.00024109,2]
[355190939,1740975067906,-165.164605,0.00024109,2]
[355190940,1740975067916,-500.0,0.00024109,2]
[355190941,1740975067925,-5263.18,0.00024109,2]
[355190942,1740975067935,-591.59,0.00024109,2]
[355190943,1740975067944,-190.85668558,0.00024109,2]
[355190944,1740975067953,-500.0,0.00024109,2]
[355190945,1740975067963,-500.0,0.00024109,2]
[355190946,1740975067973,-500.0,0.00024109,2]
[355190947,1740975067982,-500.0,0.00024109,2]
[355190948,1740975067993,-500.0,0.00024109,2]
[355190949,1740975068002,-726.77,0.00024109,2]
[355190950,1740975068011,-247.08647089,0.00024109,2]
[355190951,1740975068022,-538.98,0.00024109,2]
[355190952,1740975068032,-500.0,0.00024109,2]
[355190953,1740975068041,-776.48,0.00024109,2]
[355190954,1740975068050,-1602.35,0.00024109,2]
[355190955,1740975068060,-654.85,0.00024109,2]
[355190956,1740975068070,-695.45,0.00024109,2]
[355190957,1740975068080,-500.0,0.00024109,2]
[355190958,1740975068090,-331.61742802,0.00024109,2]
[355190959,1740975068100,-500.0,0.00024109,2]
[355190960,1740975068110,-500.0,0.00024109,2]
[355190961,1740975068119,-500.0,0.00024109,2]
[355190962,1740975068129,-500.0,0.00024109,2]
[355190963,1740975068138,-500.0,0.00024109,2]
[355190964,1740975068148,-500.0,0.00024109,2]
[355190965,1740975068157,-556.29,0.00024109,2]
[355190966,1740975068167,-15566.77,0.00024109,2]
[355190967,1740975068176,-2518.58,0.00024109,2]
[355190968,1740975068186,-500.0,0.00024109,2]
[355190969,1740975068195,-595.17,0.00024109,2]
[355190970,1740975068205,-2098.01,0.00024109,2]
[355190971,1740975068214,-500.0,0.00024109,2]
[355190972,1740975068223,-500.0,0.00024109,2]
[355190973,1740975068233,-540.5,0.00024109,2]
[355190974,1740975068242,-567.04,0.00024109,2]
[355190975,1740975068252,-500.0,0.00024109,2]
[355190976,1740975068262,-852.88,0.00024109,2]
[355190977,1740975068271,-500.0,0.00024109,2]
[355190978,1740975068280,-239.22054375,0.00024109,2]
[355190979,1740975068290,-898.43,0.00024109,2]
[355190980,1740975068299,-227.27900771,0.00024109,2]
[355190981,1740975068309,-1616.95,0.00024109,2]
[355190982,1740975068318,-392.01667014,0.00024109,2]
[355190983,1740975068327,-515.6,0.00024109,2]
[355190984,1740975068337,-500.0,0.00024109,2]
[355190985,1740975068351,-500.0,0.00024109,2]
[355190986,1740975068372,-500.0,0.00024109,2]
[355190987,1740975068392,-381.52762757,0.00024109,2]
[355190988,1740975068413,-500.0,0.00024109,2]
[355190989,1740975068434,-500.0,0.00024109,2]
[355190990,1740975068455,-500.0,0.00024109,2]
[355190991,1740975068475,-537.83,0.00024109,2]
[355190992,1740975068502,-500.0,0.00024109,2]
[355190993,1740975068528,-511.58,0.00024109,2]
[355190994,1740975068550,-500.0,0.00024109,2]
[355190995,1740975068571,-628.38,0.00024109,2]
[355190996,1740975068592,-500.0,0.00024109,2]
[355190997,1740975068612,-536.97,0.00024109,2]
[355190998,1740975068632,-500.0,0.00024109,2]
[355190999,1740975068643,-619.57,0.00024109,2]
[355191000,1740975068653,-500.0,0.00024109,2]
[355191001,1740975068663,-500.0,0.00024109,2]
[355191002,1740975068672,-500.0,0.00024109,2]
[355191003,1740975068682,-35220.11,0.00024109,2]
[355191004,1740975068691,-500.0,0.00024109,2]
[355191005,1740975068700,-500.0,0.00024109,2]
[355191006,1740975068710,-665.34,0.00024109,2]
[355191007,1740975068719,-500.0,0.00024109,2]
[355191008,1740975068728,-500.0,0.00024109,2]
[355191009,1740975068737,-500.0,0.00024109,2]
[355191010,1740975068747,-500.0,0.00024109,2]
[355191011,1740975068756,-500.0,0.00024109,2]
[355191012,1740975068766,-500.0,0.00024109,2]
[355191013,1740975068776,-500.0,0.00024109,2]
[355191014,1740975068785,-500.0,0.00024109,2]
[355191015,1740975068794,-500.0,0.00024109,2]
[355191016,1740975068804,-500.0,0.00024109,2]
[355191017,1740975068814,-500.0,0.00024109,2]
[355191018,1740975068823,-500.0,0.00024109,2]
[355191019,1740975068833,-9097.95362175,0.00024116,2]
[355191020,1740975068842,-154.0,0.00024164,2]
[355191021,1740975068852,-30920.31136429,0.000243,2]
[355191022,1740975068861,-150.0,0.0002431,2]
[355191023,1740975068870,-150.0,0.00024311,2]
[355191024,1740975068880,-202.0,0.0002435,2]
[355191025,1740975068889,-7084.8117736,0.00024366,2]
[355191026,1740975068898,-15997.7638796,0.00024366,2]
[355191027,1740975068907,-2581.61,0.00024382,2]
[355191028,1740975068916,-3000.0,0.00024383,2]
[355191029,1740975068926,-568.51,0.00024383,2]
[355191030,1740975068935,-300.0,0.00024383,2]
[355191031,1740975068944,-500.0,0.00024383,2]
[355191032,1740975068953,-1700.0,0.00024383,2]
[355191033,1740975068963,-1800.0,0.00024383,2]
[355191034,1740975068972,-155.104905,0.00024383,2]
[355191035,1740975068981,-152.335173,0.00024383,2]
[355191036,1740975068990,-601.34310044,0.00024383,2]
[355191037,1740975068999,-165.164605,0.00024383,2]
[355191038,1740975069008,-307.10773178,0.00024383,2]
[355191039,1740975069017,-5263.18,0.00024383,2]
[355191040,1740975069027,-500.0,0.00024383,2]
[355191041,1740975069038,-500.0,0.00024383,2]
[355191042,1740975069047,-598.59166859,0.00024383,2]
[355191043,1740975069057,-642.28236854,0.00024383,2]
[355191044,1740975069066,-152.83513808,0.00024383,2]
[355191045,1740975069075,-726.77,0.00024383,2]
[355191046,1740975069085,-538.98,0.00024383,2]
[355191047,1740975069094,-500.0,0.00024383,2]
[355191048,1740975069104,-776.48,0.00024383,2]
[355191049,1740975069114,-1602.35,0.00024383,2]
[355191050,1740975069123,-654.85,0.00024383,2]
[355191051,1740975069132,-695.45,0.00024383,2]
[355191052,1740975069142,-500.0,0.00024383,2]
[355191053,1740975069152,-242.93450977,0.00024383,2]
[355191054,1740975069162,-500.0,0.00024383,2]
[355191055,1740975069171,-386.56044818,0.00024383,2]
[355191056,1740975069181,-500.0,0.00024383,2]
[355191057,1740975069191,-500.0,0.00024383,2]
[355191058,1740975069200,-500.0,0.00024383,2]
[355191059,1740975069210,-556.29,0.00024383,2]
[355191060,1740975069219,-15566.77,0.00024383,2]
[355191061,1740975069229,-2518.58,0.00024383,2]
[355191062,1740975069240,-500.0,0.00024383,2]
[355191063,1740975069250,-595.17,0.00024383,2]
[355191064,1740975069259,-2098.01,0.00024383,2]
[355191065,1740975069268,-500.0,0.00024383,2]
[355191066,1740975069278,-215.02576096,0.00024383,2]
[355191067,1740975069287,-540.5,0.00024383,2]
[355191068,1740975069297,-567.04,0.00024383,2]
[355191069,1740975069307,-500.0,0.00024383,2]
[355191070,1740975069316,-500.0,0.00024383,2]
[355191071,1740975069326,-852.88,0.00024383,2]
[355191072,1740975069335,-898.43,0.00024383,2]
[355191073,1740975069345,-1616.95,0.00024383,2]
[355191074,1740975069354,-515.6,0.00024383,2]
[355191075,1740975069364,-500.0,0.00024383,2]
[355191076,1740975069375,-500.0,0.00024383,2]
[355191077,1740975069388,-266.84623113,0.00024383,2]
[355191078,1740975069398,-500.0,0.00024383,2]
[355191079,1740975069407,-500.0,0.00024383,2]
[355191080,1740975069417,-500.0,0.00024383,2]
[355191081,1740975069427,-537.83,0.00024383,2]
[355191082,1740975069436,-500.0,0.00024383,2]
[355191083,1740975069445,-511.58,0.00024383,2]
[355191084,1740975069456,-500.0,0.00024383,2]
[355191085,1740975069466,-628.38,0.00024383,2]
[355191086,1740975069476,-536.97,0.00024383,2]
[355191087,1740975069485,-500.0,0.00024383,2]
[355191088,1740975069495,-500.0,0.00024383,2]
[355191089,1740975069505,-619.57,0.00024383,2]
[355191090,1740975069514,-272.77717914,0.00024383,2]
[355191091,1740975069524,-500.0,0.00024383,2]
[355191092,1740975069533,-580.26019213,0.00024383,2]
[355191093,1740975069542,-35220.11,0.00024383,2]
[355191094,1740975069551,-500.0,0.00024383,2]
[355191095,1740975069560,-500.0,0.00024383,2]
[355191096,1740975069570,-665.34,0.00024383,2]
[355191097,1740975069579,-500.0,0.00024383,2]
[355191098,1740975069589,-500.0,0.00024383,2]
[355191099,1740975069598,-500.0,0.00024383,2]
[355191100,1740975069607,-500.0,0.00024383,2]
[355191101,1740975069619,-500.0,0.00024383,2]
[355191102,1740975069628,-500.0,0.00024383,2]
[355191103,1740975069638,-500.0,0.00024383,2]
[355191104,1740975069647,-500.0,0.00024383,2]
[355191105,1740975069657,-500.0,0.00024383,2]
[355191106,1740975069667,-500.0,0.00024383,2]
[355191107,1740975069676,-270.72030749,0.00024383,2]
[355191108,1740975069685,-500.0,0.00024383,2]
[355191109,1740975069694,-438.22,0.00024384,2]
[355191110,1740975069704,-150.0,0.00024401,2]
[355191111,1740975069713,-150.0,0.00024416,2]
[355191112,1740975069723,-1003.75801357,0.000245,2]
[355191113,1740975069732,-1569.03876039,0.000245,2]
[355191114,1740975069742,-150.0,0.00024506,2]
[355191115,1740975069751,-203.0,0.0002453,2]
[355191116,1740975069760,-915.4812,0.00024534,2]
[355191117,1740975069770,-2000.0,0.00024534,2]
[355191118,1740975069780,-150.0,0.00024584,2]
[355191119,1740975069789,-150.0,0.00024653,2]
[355191120,1740975069798,-2581.61,0.00024656,2]
[355191121,1740975069808,-568.51,0.00024657,2]
[355191122,1740975069817,-300.0,0.00024657,2]
[355191123,1740975069826,-500.0,0.00024657,2]
[355191124,1740975069836,-152.335173,0.00024657,2]
[355191125,1740975069845,-165.164605,0.00024657,2]
[355191126,1740975069854,-5263.18,0.00024657,2]
[355191127,1740975069864,-500.0,0.00024657,2]
[355191128,1740975069873,-500.0,0.00024657,2]
[355191129,1740975069883,-726.77,0.00024657,2]
[355191130,1740975069893,-538.98,0.00024657,2]
[355191131,1740975070074,-500.0,0.00024657,2]
[355191132,1740975070085,-776.48,0.00024657,2]
[355191133,1740975070095,-1602.35,0.00024657,2]
[355191134,1740975070105,-500.0,0.00024657,2]
[355191135,1740975070115,-500.0,0.00024657,2]
[355191136,1740975070124,-500.0,0.00024657,2]
[355191137,1740975070134,-500.0,0.00024657,2]
[355191138,1740975070144,-500.0,0.00024657,2]
[355191139,1740975070153,-500.0,0.00024657,2]
[355191140,1740975070163,-500.0,0.00024657,2]
[355191141,1740975070173,-500.0,0.00024657,2]
[355191142,1740975070183,-500.0,0.00024657,2]
[355191143,1740975070193,-500.0,0.00024657,2]
[355191144,1740975070202,-500.0,0.00024657,2]
[355191145,1740975070211,-654.85,0.00024657,2]
[355191146,1740975070221,-695.45,0.00024657,2]
[355191147,1740975070231,-500.0,0.00024657,2]